[Event "44th Chess Olympiad Open 2022"]
[Site "Chennai"]
[Date "2022.08.05"]
[Round "7.59"]
[White "Yahi, Mohamed Salem"]
[Black "Toczek, Grzegorz"]
[Result "0-1"]
[ECO "B01"]
[WhiteElo "1862"]
[BlackElo "2287"]
[Annotator "NA RC"]
[PlyCount "132"]
[EventDate "2022.07.29"]
[EventType "team-tourn"]
[EventCountry "IND"]
[SourceTitle "playchess.com"]
[Source "ChessBase"]
[SourceQuality "1"]
[WhiteTeam "MTN"]
[BlackTeam "Wales"]
[BlackTeamCountry "WLS"]
[TimeControl "40/5400+30:1800+30"]

1. e4 {[%emt 0:00:06]} d5 {[%emt 0:00:11]} 2. exd5 {[%emt 0:00:46]} Qxd5 {[%emt 0:00:04]} 3. Nc3 {[%emt 0:01:02]} Qa5 {[%emt 0:00:13]} 4. d4 {[%emt 0:00:30]} Nf6 {[%emt 0:00:04]} 5. Bd3 {[%emt 0:02:19]} c6 {[%emt 0:04:16]} 6. Nge2 {[%emt 0:00:44]} g6 {[%emt 0:03:06]} 7. O-O {[%emt 0:02:20]} Bg7 {[%emt 0:00:04]} 8. Bd2 {[%emt 0:01:30]} O-O {[%emt 0:01:39]} 9. h3 {[%emt 0:02:35]} Nbd7 {[%emt 0:01:09]} 10. Qc1 {[%emt 0:06:02]} Re8 {[%emt 0:04:17]} 11. Re1 {[%emt 0:03:57]} Qd8 {[%emt 0:03:20]} 12. Ng3 {[%emt 0:00:32]} Nb6 {[%emt 0:01:44]} 13. Nce2 {[%emt 0:04:37]} Nfd7 {[%emt 0:03:49]} 14. Bh6 {[%emt 0:02:43]} Bh8 {[%emt 0:03:50]} 15. c4 {[%emt 0:11:46]} Ne5 {[%emt 0:03:23]} 16. Rd1 {[%emt 0:02:37]} Nxd3 {[%emt 0:03:16]} 17. Rxd3 {[%emt 0:00:53]} e5 {[%emt 0:12:02]} 18. a4 {[%emt 0:03:33]} exd4 {[%emt 0:07:46]} 19. Bg5 {[%emt 0:03:28]} Qc7 {[%emt 0:04:40]} 20. Nxd4 {[%emt 0:04:32]} Nd7 {[%emt 0:03:13]} 21. Nf3 {[%emt 0:02:39]} Nc5 {[%emt 0:01:49]} 22. Bf4 {[%emt 0:02:07]} Nxd3 {[%emt 0:00:27]} 23. Bxc7 {[%emt 0:01:38]} Nxc1 {[%emt 0:00:04]} 24. Rxc1 {[%emt 0:00:37]} Bxb2 {[%emt 0:01:47]} 25. Rd1 {[%emt 0:00:34]} Bg7 {[%emt 0:06:25]} 26. Ne4 {[%emt 0:06:03]} Be6 {[%emt 0:07:20]} 27. Rc1 {[%emt 0:06:22]} b6 {[%emt 0:01:55]} 28. g4 {[%emt 0:04:58]} Bxg4 {[%emt 0:02:36]} 29. Nfd2 {[%emt 0:03:19]} Bxh3 {[%emt 0:00:31]} 30. Bf4 {[%emt 0:02:41]} c5 {[%emt 0:04:28]} 31. Nc3 {[%emt 0:02:27]} Be5 {[%emt 0:02:26]} 32. Be3 {[%emt 0:01:52]} Be6 {[%emt 0:00:24]} 33. Nce4 {[%emt 0:00:44]} f5 {[%emt 0:02:29]} 34. Ng5 {[%emt 0:00:58]} f4 {[%emt 0:00:07]} 35. Ndf3 {[%emt 0:01:52]} Bc7 {[%emt 0:02:52]} 36. Bd2 {[%emt 0:00:39]} Bf5 {[%emt 0:00:23]} 37. Nh4 {[%emt 0:01:36]} Bd3 {[%emt 0:01:46]} 38. Ng2 {[%emt 0:01:20]} h6 {[%emt 0:02:30]} 39. Bxf4 {[%emt 0:01:36]} Bxf4 {[%emt 0:01:07]} 40. Nxf4 {[%emt 0:00:07]} Rad8 {[%emt 0:01:45]} 41. Nf3 {[%emt 0:31:28]} Re4 {[%emt 0:31:25]} 42. Nd5 {[%emt 0:00:53]} Kg7 {[%emt 0:00:12]} 43. Ne3 {[%emt 0:00:28]} Be2 {[%emt 0:01:51]} 44. Ne1 {[%emt 0:01:49]} Rdd4 {[%emt 0:02:29]} 45. a5 {[%emt 0:01:51]} Bxc4 {[%emt 0:00:00]} 46. axb6 {[%emt 0:00:00]} axb6 {[%emt 0:00:00]} 47. Nf3 {[%emt 0:00:00]} Rg4+ {[%emt 0:00:00]} 48. Nxg4 {[%emt 0:00:00]} Rxg4+ {[%emt 0:00:00]} 49. Kh2 {[%emt 0:00:00]} Bd5 {[%emt 0:00:00]} 50. Ne5 {[%emt 0:00:00]} Rg2+ {[%emt 0:00:00]} 51. Kh3 {[%emt 0:00:00]} Rxf2 {[%emt 0:00:00]} 52. Ra1 {[%emt 0:00:00]} Ra2 {[%emt 0:00:00]} 53. Rd1 {[%emt 0:00:00]} Be6+ {[%emt 0:00:00]} 54. Kg3 {[%emt 0:00:00]} Kf6 {[%emt 0:00:00]} 55. Nc6 {[%emt 0:00:00]} Ra3+ {[%emt 0:00:00]} 56. Kh2 {[%emt 0:00:00]} Bf5 {[%emt 0:00:00]} 57. Rd6+ {[%emt 0:00:00]} Kg5 {[%emt 0:00:00]} 58. Ne5 {[%emt 0:00:00]} b5 {[%emt 0:00:00]} 59. Kg2 {[%emt 0:00:00]} h5 {[%emt 0:00:00]} 60. Kf2 {[%emt 0:00:00]} b4 {[%emt 0:00:00]} 61. Rb6 {[%emt 0:00:00]} Rc3 {[%emt 0:00:00]} 62. Nc6 {[%emt 0:00:00]} b3 {[%emt 0:00:00]} 63. Na5 {[%emt 0:00:00]} Rc2+ {[%emt 0:00:00]} 64. Ke3 {[%emt 0:00:00]} b2 {[%emt 0:00:00]} 65. Nc6 {[%emt 0:00:00]} Rh2 {[%emt 0:00:00]} 66. Ne5 {[%emt 0:00:00]} Rh3+ {[%emt 0:00:00]} 0-1

[Event "44th Chess Olympiad Open 2022"]
[Site "Chennai"]
[Date "2022.08.05"]
[Round "7.60"]
[White "Koniahli, Malek."]
[Black "Hsu, Hsuan-Ming"]
[Result "1/2-1/2"]
[ECO "C77"]
[WhiteElo "2238"]
[BlackElo "1900"]
[Annotator "NA RC"]
[PlyCount "96"]
[EventDate "2022.07.29"]
[EventType "team-tourn"]
[EventCountry "IND"]
[SourceTitle "playchess.com"]
[Source "ChessBase"]
[SourceQuality "1"]
[WhiteTeam "Syria"]
[BlackTeam "Taiwan"]
[WhiteTeamCountry "SYR"]
[BlackTeamCountry "TPE"]
[TimeControl "40/5400+30:1800+30"]

1. e4 {[%emt 0:00:06]} e5 {[%emt 0:00:13]} 2. Nf3 {[%emt 0:00:05]} Nc6 {[%emt 0:00:04]} 3. Bb5 {[%emt 0:00:04]} a6 {[%emt 0:00:26]} 4. Ba4 {[%emt 0:00:08]} Nf6 {[%emt 0:00:06]} 5. Bxc6 {[%emt 0:00:13]} dxc6 {[%emt 0:04:04]} 6. d3 {[%emt 0:00:06]} Bc5 {[%emt 0:06:29]} 7. Nbd2 {[%emt 0:00:13]} O-O {[%emt 0:07:29]} 8. Nc4 {[%emt 0:00:57]} Nd7 {[%emt 0:00:42]} 9. O-O {[%emt 0:01:25]} f6 {[%emt 0:04:00]} 10. Be3 {[%emt 0:02:54]} Be7 {[%emt 0:06:56]} 11. d4 {[%emt 0:14:20]} exd4 {[%emt 0:03:05]} 12. Nxd4 {[%emt 0:01:30]} Ne5 {[%emt 0:02:26]} 13. Nxe5 {[%emt 0:02:12]} fxe5 {[%emt 0:00:15]} 14. Nb3 {[%emt 0:00:57]} Bd6 {[%emt 0:20:38]} 15. Qe2 {[%emt 0:03:04]} Qe8 {[%emt 0:03:16]} 16. Rad1 {[%emt 0:01:43]} Qg6 {[%emt 0:04:39]} 17. f3 {[%emt 0:01:11]} a5 {[%emt 0:05:22]} 18. a4 {[%emt 0:04:47]} Qf7 {[%emt 0:00:21]} 19. Nd2 {[%emt 0:08:30]} Be6 {[%emt 0:06:56]} 20. b3 {[%emt 0:00:22]} Be7 {[%emt 0:07:17]} 21. Nc4 {[%emt 0:04:28]} Bf6 {[%emt 0:03:14]} 22. Bd2 {[%emt 0:01:35]} Qe7 {[%emt 0:04:46]} 23. Kh1 {[%emt 0:11:21]} b6 {[%emt 0:01:06]} 24. Bc3 {[%emt 0:00:37]} Bf7 {[%emt 0:00:16]} 25. Ne3 {[%emt 0:04:31]} Qc5 {[%emt 0:01:10]} 26. Bb2 {[%emt 0:06:39]} Be6 {[%emt 0:04:28]} 27. Nc4 {[%emt 0:01:33]} b5 {[%emt 0:01:08]} 28. Qe3 {[%emt 0:04:58]} Qxe3 {[%emt 0:00:53]} 29. Nxe3 {[%emt 0:00:02]} Rfd8 {[%emt 0:01:41]} 30. Bc3 {[%emt 0:01:09]} b4 {[%emt 0:00:30]} 31. Bb2 {[%emt 0:00:10]} h5 {[%emt 0:00:23]} 32. Kg1 {[%emt 0:01:08]} Rd6 {[%emt 0:00:48]} 33. Kf2 {[%emt 0:01:31]} Rad8 {[%emt 0:00:14]} 34. Ke2 {[%emt 0:00:02]} Bc8 {[%emt 0:00:46]} 35. g3 {[%emt 0:04:53]} Ba6+ {[%emt 0:00:21]} 36. Nc4 {[%emt 0:00:02]} Bg5 {[%emt 0:00:30]} 37. Rd3 {[%emt 0:00:09]} Rxd3 {[%emt 0:01:17]} 38. cxd3 {[%emt 0:00:01]} Bxc4 {[%emt 0:00:20]} 39. bxc4 {[%emt 0:00:02]} Bf6 {[%emt 0:00:43]} 40. Bc1 {[%emt 0:03:12]} Kf7 {[%emt 0:00:34]} 41. Be3 {[%emt 0:32:09]} Ke6 {[%emt 0:02:17]} 42. f4 {[%emt 0:00:00]} Be7 {[%emt 0:05:01]} 43. Kd2 {[%emt 0:00:00]} c5 {[%emt 0:02:01]} 44. Kc2 {[%emt 0:00:00]} Rf8 {[%emt 0:09:43]} 45. Rf2 {[%emt 0:00:00]} g6 {[%emt 0:03:03]} 46. Kb3 {[%emt 0:00:00]} Bd6 {[%emt 0:05:02]} 47. h3 {[%emt 0:05:41]} Rf7 {[%emt 0:02:15]} 48. Kc2 {[%emt 0:01:48]} Rf8 {[%emt 0:00:46]} 1/2-1/2

[Event "44th Chess Olympiad Open 2022"]
[Site "Chennai"]
[Date "2022.08.05"]
[Round "7.60"]
[White "Chekh Adm Khedr, Aram"]
[Black "Yan, Austin K"]
[Result "1/2-1/2"]
[ECO "B20"]
[WhiteElo "2147"]
[BlackElo "1568"]
[Annotator "TA"]
[PlyCount "114"]
[EventDate "2022.07.29"]
[EventType "team-tourn"]
[EventCountry "IND"]
[SourceTitle "playchess.com"]
[Source "ChessBase"]
[SourceQuality "1"]
[WhiteTeam "Syria"]
[BlackTeam "United States"]
[WhiteTeamCountry "SYR"]
[BlackTeamCountry "USA"]
[TimeControl "40/5400+30:1800+30"]

{[%evp 9,114,0,0,12,16,-9,-10,-9,-15,-25,-23,-33,-41,-77,-91,-92,-84,-98,-89,-89,-94,-132,0,0,0,0,0,0,0,0,0,-6,0,0,0,-21,0,0,12,-21,0,-8,0,-17,20,12,27,0,0,0,15,0,0,0,0,0,0,0,0,-87,-83,-104,0,0,0,0,0,-8,-8,-8,-8,-8,-8,-8,-8,-8,0,0,0,0,0,0,0,0,0,0,0,0,0,0,0,0,0,0,0,0,0,0,0,0,0,0,0,0,0,0,0]} 1. e4 {[%emt 0:00:04]} c5 {[%emt 0:00:22]} 2. b3 {[%emt 0:00:47]} d5 {[%emt 0:05:45]} 3. exd5 {[%emt 0:02:28]} Qxd5 {[%emt 0:00:13]} 4. Nc3 {[%emt 0:01:19]} Qd8 {[%emt 0:01:12]} 5. Bc4 {[%emt 0:01:11]} Nf6 {[%emt 0:01:08]} 6. Nf3 {[%emt 0:00:21] B20: Sicilian: Unusual White 2nd moves.} a6 {[%emt 0:01:55]} 7. a4 {[%emt 0:00:53]} Nc6 {[%emt 0:00:45]} 8. Bb2 {[%emt 0:06:59]} Bg4 {[%emt 0:02:34][%cal Bc8g4,Bg4h5,Bh5g6][%mdl 32]} 9. h3 {[%emt 0:10:35] [#]} Bh5 $146 {[%emt 0:02:54]} ({Predecessor:} 9... Bxf3 10. Qxf3 Nd4 11. Qd1 e6 12. O-O Be7 13. Ne2 O-O 14. Nxd4 cxd4 15. Qf3 Rb8 {½-½ (48) Mammadova,G (2382)-Eswaran,A (2244) Chess.com INT 2021}) 10. g4 {[%emt 0:00:09]} Bg6 {[%emt 0:00:40]} 11. d3 {[%emt 0:04:54]} e6 {[%emt 0:04:42]} 12. Qd2 {[%emt 0:06:22]} Bd6 {[%emt 0:16:04]} 13. Rg1 {[%emt 0:10:55]} Qc7 {[%emt 0:04:00]} 14. Ne2 {[%emt 0:10:10]} O-O-O {[%emt 0:18:43]} 15. h4 {[%emt 0:10:06] [#]} Ne5 {[%emt 0:11:57]} (15... h5 $1 $17 {[%cal Rh5g4]} 16. g5 Ng4) 16. Nxe5 {[%emt 0:03:16]} Bxe5 {[%emt 0:02:00]} 17. Bxe5 {[%emt 0:00:04]} Qxe5 {[%emt 0:00:02]} 18. Qc3 {[%emt 0:00:08]} Qxc3+ {[%emt 0:01:12]} 19. Nxc3 {[%emt 0:00:01]} h5 $1 {[%emt 0:06:07]} 20. g5 {[%emt 0:00:44]} Nd7 {[%emt 0:07:59]} (20... Ng4 {keeps more tension.} 21. f4 Ne3 22. Kd2 Nf5) 21. f4 {[%emt 0:10:22] Prevents Ne5.} Nb8 {[%emt 0:02:52]} 22. O-O-O {[%emt 0:12:01]} Kc7 {[%emt 0:00:42]} 23. Ne4 {[%emt 0:01:21]} b6 {[%emt 0:01:36]} 24. Nd2 {[%emt 0:02:22]} Bf5 {[%emt 0:01:54]} (24... Rd4 $5 {[%cal Rd4f4]}) 25. Rde1 {[%emt 0:00:32][%cal Og5g6]} Rhe8 {[%emt 0:01:51]} 26. Nf3 {[%emt 0:01:30]} f6 {[%emt 0:00:18]} 27. gxf6 {[%emt 0:01:10]} gxf6 {[%emt 0:00:01]} 28. Rg7+ {[%emt 0:00:08]} Rd7 {[%emt 0:02:06]} 29. Rxd7+ {[%emt 0:00:34]} Kxd7 {[%emt 0:00:02]} 30. c3 {[%emt 0:01:36]} Rg8 {[%emt 0:00:23]} 31. Rg1 {[%emt 0:00:33]} Rxg1+ {[%emt 0:01:53]} 32. Nxg1 $11 {[%emt 0:00:01][%mdl 4096] Endgame KBN-KBN} Bg4 {[%emt 0:00:00]} 33. Kd2 $1 {[%emt 0:00:32]} Kc6 {[%emt 0:00:26] [#] aiming for ...b5.} 34. b4 {[%emt 0:01:25]} (34. d4 $1 $11 {remains equal.}) 34... b5 $17 {[%emt 0:00:21]} 35. Bb3 {[%emt 0:00:08]} Nd7 {[%emt 0:01:07]} ({Black should try} 35... cxb4 $17 36. cxb4 Kd7 37. axb5 axb5) 36. axb5+ $11 {[%emt 0:00:31] The position is equal.} axb5 {[%emt 0:00:11]} 37. Ke3 {[%emt 0:01:18]} Nf8 {[%emt 0:00:47]} 38. Nf3 {[%emt 0:00:35]} Ng6 {[%emt 0:00:39] Hoping for ...Bxf3.} 39. bxc5 {[%emt 0:00:58]} Kxc5 {[%emt 0:00:46]} 40. Nh2 {[%emt 0:00:56]} Nxh4 {[%emt 0:01:39]} 41. Nxg4 {[%emt 0:30:06]} hxg4 {[%emt 0:30:08]} 42. Bxe6 {[%emt 0:00:06] KB-KN} f5 {[%emt 0:00:00]} 43. Kf2 {[%emt 0:00:00]} Kd6 {[%emt 0:00:00]} 44. Bc8 {[%emt 0:00:00]} Kc7 {[%emt 0:00:00]} 45. Be6 {[%emt 0:00:00]} Kd6 {[%emt 0:00:00]} 46. Bf7 {[%emt 0:00:00]} Nf3 {[%emt 0:00:00]} 47. Bg6 {[%emt 0:00:00]} b4 {[%emt 0:00:00]} 48. cxb4 {[%emt 0:00:00]} Nd4 {[%emt 0:00:00]} 49. Be8 {[%emt 0:00:00]} Nc2 {[%emt 0:00:00]} 50. b5 {[%emt 0:00:00]} Kc5 {[%emt 0:00:00]} 51. Bd7 {[%emt 0:00:00]} Nd4 {[%emt 0:00:00]} 52. Ke3 {[%emt 0:00:00][%cal Ob5b6] b6! is the strong threat.} Nc2+ {[%emt 0:00:00]} 53. Ke2 {[%emt 0:00:00]} Nd4+ {[%emt 0:00:00]} 54. Kf2 {[%emt 0:00:00]} Kb6 {[%emt 0:00:00]} 55. Ke3 {[%emt 0:00:00]} g3 {[%emt 0:00:27]} 56. Bc6 {[%emt 0:02:41]} ({Not} 56. Kxd4 $2 g2 57. Bc6 g1=Q+ $19) 56... Nxc6 {[%emt 0:00:22]} 57. bxc6 {[%emt 0:00:05]} Kxc6 {[%emt 0:00:01] Weighted Error Value: White=0.09 (flawless) /Black=0.08 (flawless)} 1/2-1/2

[Event "44th Chess Olympiad Open 2022"]
[Site "Chennai"]
[Date "2022.08.05"]
[Round "7.60"]
[White "Liu, Yeh Yang"]
[Black "Fandi, Mazen."]
[Result "0-1"]
[ECO "B01"]
[WhiteElo "1994"]
[BlackElo "1715"]
[Annotator "TA"]
[PlyCount "110"]
[EventDate "2022.07.29"]
[EventType "team-tourn"]
[EventCountry "IND"]
[SourceTitle "playchess.com"]
[Source "ChessBase"]
[SourceQuality "1"]
[WhiteTeam "Taiwan"]
[BlackTeam "Syria"]
[WhiteTeamCountry "TPE"]
[BlackTeamCountry "SYR"]
[TimeControl "40/5400+30:1800+30"]

{[%evp 9,110,31,55,46,39,28,52,47,39,0,8,8,7,9,6,-18,7,-25,-28,-93,-89,-127,-120,-121,-42,-47,0,0,0,0,36,38,30,31,48,41,35,35,29,36,47,6,38,6,3,0,0,0,0,0,3,0,13,9,8,0,0,0,0,0,0,0,0,-6,-8,-17,-9,-37,-4,-5,-5,-36,-45,-46,-27,-304,-304,-569,-514,-628,-614,-677,-397,-1913,-1543,-1138,-1127,-915,-890,-29980,-29981,-29981,-29981,-29981,-29982,-29982,-29983,-29983,-29984,-29984,-29985,-29985,-29986]} 1. e4 {[%emt 0:00:03]} d5 {[%emt 0:03:41]} 2. exd5 {[%emt 0:00:04]} Qxd5 {[%emt 0:01:00]} 3. Nc3 {[%emt 0:00:03]} Qe5+ {[%emt 0:00:50]} 4. Nge2 {[%emt 0:00:33]} Qa5 {[%emt 0:00:24]} 5. d4 {[%emt 0:00:45]} c6 {[%emt 0:00:44]} 6. Nf4 {[%emt 0:01:19] B01: Scandinavian Defence.} Nf6 {[%emt 0:01:33]} 7. Bc4 {[%emt 0:00:54]} e6 {[%emt 0:01:49]} 8. O-O {[%emt 0:00:13] White is slightly better.} Bd6 {[%emt 0:00:21] [#]} 9. Qd3 $146 {[%emt 0:03:25]} ({Predecessor:} 9. Re1 O-O 10. Ne4 Nxe4 11. Rxe4 Nd7 12. c3 Nf6 13. Re1 Qc7 14. g3 c5 {½-½ (14) Alexikov,A (2402)-Boricsev,O (2299) Alushta 2006}) 9... O-O {[%emt 0:01:09]} 10. Ne4 {[%emt 0:04:11]} Nxe4 {[%emt 0:01:59]} 11. Qxe4 {[%emt 0:00:03]} Nd7 {[%emt 0:00:29]} 12. c3 {[%emt 0:03:20]} e5 {[%emt 0:04:55]} 13. b4 {[%emt 0:05:07]} ({Not} 13. Bd3 $2 Nf6 14. Qf3 exf4 $19) 13... Qc7 {[%emt 0:03:07]} 14. dxe5 {[%emt 0:01:23]} (14. Nh5 $11 {remains equal.} exd4 15. cxd4 (15. Qxd4 Bxh2+ 16. Kh1 Be5 $17)) 14... Bxe5 $17 {[%emt 0:00:46]} ({Much worse is} 14... Nxe5 $6 15. Bb3 $15) 15. Qf3 {[%emt 0:02:39] [#]} Nf6 $1 {[%emt 0:02:14]} 16. h3 {[%emt 0:00:07] Against Bg4} Bf5 {[%emt 0:04:36]} (16... b5 $17 17. Bb3 Bb7) 17. Nh5 $1 $15 {[%emt 0:02:46]} Bg6 {[%emt 0:00:44]} (17... Nxh5 $1 $15 {is more appropriate.} 18. Qxf5 Bxc3) 18. Nxf6+ $11 {[%emt 0:00:05]} Bxf6 {[%emt 0:00:22]} 19. Bf4 $36 {[%emt 0:00:12][%mdl 2048] White is more active.} Be5 {[%emt 0:01:27]} 20. Bxe5 {[%emt 0:00:05]} Qxe5 {[%emt 0:00:10]} 21. Rfe1 {[%emt 0:00:08]} Qc7 {[%emt 0:00:29]} 22. Re3 {[%emt 0:01:44]} Rfe8 {[%emt 0:04:07]} 23. Rae1 {[%emt 0:00:10]} Rxe3 {[%emt 0:06:05]} 24. Qxe3 {[%emt 0:04:00][%cal Oe3e8] White wants to mate with Qe8+!} h6 {[%emt 0:00:25]} 25. Qe7 {[%emt 0:02:53]} Rc8 {[%emt 0:02:55]} 26. a4 {[%emt 0:00:11]} b5 {[%emt 0:03:48]} 27. Bb3 {[%emt 0:00:02]} bxa4 {[%emt 0:03:33]} 28. Bxa4 {[%emt 0:00:09]} c5 {[%emt 0:01:34]} 29. Qxc7 {[%emt 0:01:41]} Rxc7 {[%emt 0:00:10][%mdl 4096] Endgame KRB-KRB} 30. Re8+ {[%emt 0:00:04]} Kh7 {[%emt 0:00:37]} 31. b5 {[%emt 0:00:03]} Bd3 {[%emt 0:00:53]} 32. Rd8 {[%emt 0:00:59]} Bc4 {[%emt 0:01:02]} 33. Rb8 {[%emt 0:04:00]} g6 {[%emt 0:03:07]} 34. Kh2 {[%emt 0:00:14]} Kg7 {[%emt 0:01:14]} 35. Kg3 {[%emt 0:03:49]} Kf6 {[%emt 0:01:28]} 36. Kf4 {[%emt 0:01:14]} g5+ {[%emt 0:03:05]} 37. Kg4 {[%emt 0:01:21]} Be6+ {[%emt 0:01:15]} 38. Kf3 {[%emt 0:13:29]} Rb7 {[%emt 0:01:54]} 39. Rh8 {[%emt 0:11:52]} Kg7 {[%emt 0:01:10]} 40. Ra8 {[%emt 0:03:05] [#]} Rxb5 $1 {[%emt 0:02:44] Strongly threatening ...Bd5+.} 41. Rxa7 {[%emt 0:30:02]} Rb1 {[%emt 0:31:04] Hoping for ...Ra1.} 42. Ra5 $2 {[%emt 0:11:45][%mdl 8192] Now White is beyond hope.} (42. Rc7 $11) 42... Ra1 $19 {[%emt 0:00:41]} 43. h4 $2 {[%emt 0:01:03]} (43. Ke4) 43... gxh4 {[%emt 0:01:00]} 44. Ke4 {[%emt 0:06:31]} Bb3 {[%emt 0:00:43]} 45. Bxb3 {[%emt 0:03:05]} Rxa5 {[%emt 0:00:11] KR-KB} 46. Kd3 $2 {[%emt 0:02:54]} (46. Bd5) 46... c4+ {[%emt 0:00:18]} 47. Bxc4 {[%emt 0:02:31]} Rg5 {[%emt 0:00:12]} 48. Ke3 {[%emt 0:00:11]} Rxg2 {[%emt 0:00:14] ( -> ...Rg1)} 49. Bd5 {[%emt 0:00:03]} h3 {[%emt 0:00:31] Black mates.} 50. c4 {[%emt 0:01:25]} Rg5 {[%emt 0:00:10]} 51. Bb7 {[%emt 0:00:24]} h2 {[%emt 0:00:17]} 52. Kd2 {[%emt 0:00:19]} Rg1 {[%emt 0:00:10]} 53. c5 {[%emt 0:00:06]} h1=Q {[%emt 0:00:14]} 54. Bxh1 {[%emt 0:00:04]} Rxh1 {[%emt 0:00:18]} 55. c6 {[%emt 0:00:04]} Rh5 {[%emt 0:00:10] Weighted Error Value: White=0.55/Black=0.06 (flawless)} 0-1

[Event "44th Chess Olympiad Open 2022"]
[Site "Chennai"]
[Date "2022.08.05"]
[Round "7.60"]
[White "Wu, Bing-Shen"]
[Black "Eiti, Bashir"]
[Result "0-1"]
[ECO "D11"]
[WhiteElo "1660"]
[BlackElo "2337"]
[Annotator "TA"]
[PlyCount "138"]
[EventDate "2022.07.29"]
[EventType "team-tourn"]
[EventCountry "IND"]
[SourceTitle "playchess.com"]
[Source "ChessBase"]
[SourceQuality "1"]
[WhiteTeam "Taiwan"]
[BlackTeam "Syria"]
[WhiteTeamCountry "TPE"]
[BlackTeamCountry "SYR"]
[TimeControl "40/5400+30:1800+30"]

{[%evp 9,138,0,0,0,0,-3,0,0,0,0,5,6,19,6,17,0,13,14,8,0,11,4,66,52,35,0,9,-80,-69,-73,-64,-63,-62,-62,-60,-160,-160,-212,-166,-235,-235,-227,-210,-226,-202,-283,-276,-272,-271,-256,-262,-261,-265,-260,-256,-256,-248,-258,-258,-274,-254,-274,-264,-272,-200,-199,0,-275,-252,-449,-453,-447,-419,-579,-579,-574,-570,-579,-585,-585,-578,-570,-559,-665,-665,-665,-629,-562,-612,-720,-689,-691,-642,-608,-598,-779,-778,-714,-702,-595,-468,-488,-479,-475,-466,-447,-427,-649,-663,-655,-658,-651,-650,-648,-622,-626,-620,-619,-613,-995,-976,-1486,-1416,-892,-605,-5073,-5624,-5167,-4655,-29986,-29987]} 1. d4 {[%emt 0:00:15]} Nf6 {[%emt 0:01:42]} 2. Nf3 {[%emt 0:00:12]} d5 {[%emt 0:04:06]} 3. c4 {[%emt 0:00:47]} c6 {[%emt 0:01:18]} 4. g3 {[%emt 0:00:38]} Bf5 {[%emt 0:01:13]} 5. Bg2 {[%emt 0:02:32]} e6 {[%emt 0:00:47]} 6. Qb3 {[%emt 0:06:26] D11: Slav Defence: 3 Nf3 sidelines and 3...Nf6 4 e3 Bg4.} Qb6 {[%emt 0:01:06]} 7. c5 {[%emt 0:00:42]} Qxb3 {[%emt 0:02:20]} 8. axb3 {[%emt 0:00:15] The position is equal.} Nbd7 {[%emt 0:02:18]} 9. Nc3 {[%emt 0:05:57]} a6 {[%emt 0:03:31]} 10. b4 {[%emt 0:08:14]} Rc8 {[%emt 0:00:22]} 11. O-O {[%emt 0:01:22]} Be7 {[%emt 0:01:05]} 12. h3 {[%emt 0:04:38]} O-O {[%emt 0:02:16] [#]} 13. g4 $146 {[%emt 0:02:57]} ({Predecessor:} 13. Bf4 Rfe8 14. Nd2 h6 15. g4 Bg6 16. f3 Bd8 17. e4 dxe4 18. fxe4 e5 19. dxe5 Nxe5 20. Bxe5 Rxe5 {1-0 (35) Yakovlev,M (2311)-Korolyov,A Dagomys 2004}) 13... Bg6 {[%emt 0:00:46]} 14. Bf4 {[%emt 0:03:23]} h5 {[%emt 0:09:01]} 15. g5 {[%emt 0:05:27]} Nh7 {[%emt 0:02:05]} (15... Ne4 $11) 16. h4 $14 {[%emt 0:00:52]} Bf5 {[%emt 0:02:14]} 17. Kh2 {[%emt 0:23:45]} f6 {[%emt 0:02:25]} 18. g6 {[%emt 0:08:34]} (18. e3 $11) 18... Bxg6 $17 {[%emt 0:00:36]} 19. Bh3 {[%emt 0:00:09]} Bf5 {[%emt 0:01:22]} 20. Bxf5 {[%emt 0:01:09]} exf5 {[%emt 0:00:04][%cal Be6f5,Bf5f4][%mdl 32]} 21. Rg1 {[%emt 0:04:37]} Rf7 {[%emt 0:02:22]} 22. Nd1 {[%emt 0:02:31]} (22. e3 $15) 22... Nhf8 {[%emt 0:03:44]} 23. Ne3 {[%emt 0:01:51]} (23. Bd2 $17 {might work better.}) 23... Ne6 $19 {[%emt 0:00:20]} 24. Bd6 {[%emt 0:05:37]} (24. Ng2 $142) 24... Bxd6+ {[%emt 0:00:04]} 25. cxd6 {[%emt 0:00:07]} f4 {[%emt 0:00:03]} 26. Nf5 {[%emt 0:00:14] [#]} Kh7 $1 {[%emt 0:00:09]} 27. Rae1 {[%emt 0:03:17]} (27. Ne7 $142 Rd8 28. b5 axb5 29. Ra7) 27... Ndf8 {[%emt 0:04:10]} 28. e4 {[%emt 0:04:39]} dxe4 {[%emt 0:02:08]} 29. Rxe4 {[%emt 0:00:08]} Rd8 {[%emt 0:00:43]} 30. Rge1 {[%emt 0:03:42]} g6 {[%emt 0:00:08]} 31. Ne7 {[%emt 0:00:18]} Rxd6 {[%emt 0:00:04]} 32. Nc8 {[%emt 0:00:38]} Rd8 {[%emt 0:00:05]} 33. Nb6 {[%emt 0:00:16]} Nc7 {[%emt 0:12:41]} 34. Rxf4 {[%emt 0:00:30]} Kg7 {[%emt 0:00:08]} 35. d5 {[%emt 0:00:47]} cxd5 {[%emt 0:02:31]} ({Avoid the trap} 35... Nxd5 $2 36. Rd4 $19) 36. Nd4 {[%emt 0:00:31] Prevents Nce6.} Rd6 {[%emt 0:02:55]} 37. Nc8 {[%emt 0:00:06] [#]} Rd8 {[%emt 0:00:16]} (37... Rdd7 $142 $1 38. Rf3 Rd8) 38. Nb6 $1 {[%emt 0:00:05]} Nd7 {[%emt 0:00:31]} 39. Nxd5 {[%emt 0:00:37]} (39. Na4) 39... Nxd5 {[%emt 0:01:25]} 40. Ne6+ {[%emt 0:00:06]} Kg8 {[%emt 0:00:15]} 41. Rd4 {[%emt 0:06:22] [#]} Re8 {[%emt 0:02:54]} 42. Rxd5 {[%emt 0:00:08]} Ne5 {[%emt 0:01:08] And now ...Nf3+ would win.} 43. Kg3 {[%emt 0:02:44] Prevents Nf3.} Rxe6 {[%emt 0:02:45]} 44. f4 {[%emt 0:00:08] [#]} Rfe7 $1 {[%emt 0:01:00]} 45. fxe5 {[%emt 0:00:07]} (45. Rd8+ Re8) 45... Rxe5 {[%emt 0:00:57]} 46. Rexe5 {[%emt 0:08:06]} Rxe5 {[%emt 0:00:28][%mdl 4096] Endgame KR-KR} 47. Rd8+ {[%emt 0:00:31]} Kf7 {[%emt 0:00:09]} 48. Rd7+ {[%emt 0:00:06]} Re7 {[%emt 0:00:14]} 49. Rd6 {[%emt 0:00:06]} Re3+ {[%emt 0:03:08]} 50. Kf4 {[%emt 0:03:36]} Re5 {[%emt 0:01:50]} 51. Rd7+ {[%emt 0:01:51]} Ke6 {[%emt 0:00:23]} 52. Rxb7 {[%emt 0:02:12]} Rb5 {[%emt 0:00:04] Prevents Rb6+.} 53. Ra7 {[%emt 0:00:24]} Rxb4+ {[%emt 0:00:05]} 54. Kg3 {[%emt 0:00:07]} Rb6 {[%emt 0:03:03]} 55. Kf4 {[%emt 0:01:17]} Kd5 {[%emt 0:01:06]} 56. Rg7 {[%emt 0:00:43]} Rb4+ {[%emt 0:00:26]} 57. Kg3 {[%emt 0:00:46]} Rg4+ {[%emt 0:00:08]} 58. Kf3 {[%emt 0:00:53]} (58. Kh3 $142 Kc6 59. Rf7) 58... Kc5 {[%emt 0:02:14]} 59. Ra7 {[%emt 0:01:31]} Kb5 {[%emt 0:00:19]} 60. Rb7+ {[%emt 0:00:46]} Ka5 {[%emt 0:00:05]} 61. Rf7 {[%emt 0:00:42]} f5 {[%emt 0:00:31]} 62. Rf6 {[%emt 0:02:35]} Kb5 {[%emt 0:00:08]} 63. Re6 {[%emt 0:00:47]} a5 {[%emt 0:00:10][%cal Ba6a5,Ba5a4][%mdl 32] ...a4 is the strong threat.} 64. Rf6 {[%emt 0:01:38]} a4 {[%emt 0:00:10]} 65. Re6 {[%emt 0:01:08]} Kc4 {[%emt 0:00:19]} 66. Rb6 {[%emt 0:00:06]} Kd3 {[%emt 0:00:19] White must now prevent ...Kc2.} 67. Rc6 {[%emt 0:01:35]} Kd2 {[%emt 0:01:08]} 68. Kf2 {[%emt 0:00:15]} Rxh4 {[%emt 0:00:18] Threatens to win with ...Rb4.} 69. Rxg6 {[%emt 0:00:08]} Rf4+ {[%emt 0:00:06] Weighted Error Value: White=0.29 (precise) /Black=0.09 (flawless)} 0-1